Cogmind - Beta 12 @@@ ROGUE MODE // 2023.03.05 @ 15:21:19 Player: Shin Result: Destroyed by D-53 Grenadier with Mini Grenade Launcher Performance ------------- Evolutions (0) 0 Regions Visited (2) 400 Robots Destroyed (8) 40 Value Destroyed (121) 121 Prototype IDs (2) 40 Alien Tech Used (0) 0 Bonus (0) 0 TOTAL SCORE: 601 Bonus ------- None Cogmind --------- Core Integrity 0/250 Matter 290/300 Energy 88/100 System Corruption 2% Temperature Cool (0) Movement Core (200) Ox3 Location -10/Mines Parts ------- > --- POWER (1) -------- (None) > --- PROPULSION (2) --- (None) > --- UTILITY (2) ------ Medium Storage Unit Improved Terrain Scanner > --- WEAPON (2) ------- (None) > --- INVENTORY (10) --- Light Ion Engine Aluminum Leg Wheel Improved Heat Sink High-capacity Battery (250) High-capacity Matter Pod (200) Seismic Detector EM Pulse Gun Grenade Launcher Grenade Launcher Peak State ------------ > --- POWER ------------ Ion Engine > --- PROPULSION ------- Light Treads Light Treads > --- UTILITY ---------- Medium Storage Unit Improved Terrain Scanner > --- WEAPON ----------- Medium Laser Assault Rifle > --- INVENTORY -------- Light Ion Engine Aluminum Leg Wheel Improved Heat Sink High-capacity Battery High-capacity Matter Pod Seismic Detector EM Pulse Gun Grenade Launcher Grenade Launcher [Rating: 10] Favorites ----------- Power Ion Engine Engine Ion Engine Propulsion Light Treads Treads Light Treads Leg Aluminum Leg Utility Medium Storage Unit Device Terrain Scanner Storage Medium Storage Unit Weapon Assault Rifle Energy Gun Medium Laser Ballistic Gun Assault Rifle Launcher Grenade Launcher Build | -11 -10 -10 ------- Run | Jun Mat Min Slots Evolved . | . . . Power . | . . . Propulsion . | . . . Utility . | . . . Weapon . | . . . Parts Attached 9 | . 9 . Power . | . . . Engine . | . . . Core . | . . . Reactor . | . . . Propulsion 2 | . 2 . Treads 2 | . 2 . Leg . | . . . Wheel . | . . . Hover . | . . . Flight . | . . . Utility 5 | . 5 . Device 3 | . 3 . Storage 2 | . 2 . Processor . | . . . Hackware . | . . . Protection . | . . . Artifact . | . . . Weapon 2 | . 2 . Energy Gun 1 | . 1 . Energy Cannon . | . . . Ballistic Gun . | . . . Ballistic Cannon . | . . . Launcher 1 | . 1 . Special Weapon . | . . . Impact Weapon . | . . . Slashing Weapon . | . . . Piercing Weapon . | . . . Special Melee Weapon . | . . . Unidentified Prototypes . | . . . Parts Lost 5 | . . 5 Power 1 | . . 1 Propulsion 2 | . . 2 Utility . | . . . Weapon 2 | . . 2 Highest Loss Streak 5 | . . 5 To Critical Strikes . | . . . Average Slot Usage (%) 98 | . 99 92 Engine 13 | . 14 12 Treads 25 | . 25 25 Leg 2 | . 2 . Device 13 | . 13 14 Storage 14 | . 14 14 Energy Gun 13 | . 13 13 Ballistic Gun 13 | . 14 13 Naked Turns . | . . . Heaviest Build 21 | 14 21 20 Greatest Support 40 | 20 40 40 Greatest Overweight (x) 3 | . . 3 Average Overweight (x) . | . . . Largest Inventory Capacity 10 | . 10 10 Average Capacity 9 | . 9 10 Most Carried 10 | . 10 10 Average Carried 9 | . 9 10 Final Capacity 10 | 8 10 10 Final Carried 10 | 6 10 10 Class Distribution -------------------- 100% | Mutant Dominant Class ---------------- Mutant | -10/Materials Mutant | -10/Mines Resources | -11 -10 -10 ----------- Run | Jun Mat Min Matter Collected 657 | 200 457 . Remotely . | . . . Salvage Created 131 | . 131 . Parts 18 | . 18 . Haulers Intercepted . | . . . Recyclers Shooed . | . . . Parts Field Recycled . | . . . Retrieved Matter . | . . . Parts Self-Destructed . | . . . Prevented . | . . . Kills | -11 -10 -10 ------- Run | Jun Mat Min Combat Hostiles Destroyed 5 | . 5 . Guns 2 | . 2 . AOE 3 | . 3 . Classes Destroyed 5 | . 5 . Worker 1 | . 1 . Builder 1 | . 1 . Tunneler 1 | . 1 . Swarmer 3 | . 3 . Grunt 2 | . 2 . Best Kill Streak 5 | . 5 . Combat Bots Only 3 | . 3 . Max Kills in Single Turn 2 | . 2 . Gunslinging . | . . . Exploded 1 | . 1 . Melee . | . . . Uniques/NPCs Destroyed . | . . . Combat | -11 -10 -10 -------- Run | Jun Mat Min Damage Taken 878 | . 127 751 Core 253 | . 9 244 Absorbed by Shields . | . . . Regen/Repaired (Parts) 6 | . 6 . Core Remaining (%) 100 | 100 . . Volleys Fired 17 | . 10 7 Largest 2 | . 2 2 Hottest 70 | . 70 70 Shots Fired 32 | . 19 13 Gun 30 | . 17 13 Cannon . | . . . Launcher 2 | . 2 . Special . | . . . Kinetic 15 | . 9 6 Thermal 15 | . 8 7 Explosive 2 | . 2 . Electromagnetic . | . . . Robot Hit Streak 9 | . 9 4 Robot Miss Streak 5 | . 5 2 Penetration Max . | . . . Secondary Targets . | . . . Shots Hit Robots 18 | . 10 8 Core Hits 15 | . 12 3 Critical Kills . | . . . Critical Parts Destroyed . | . . . Critical Strikes . | . . . Melee Attacks . | . . . Impact . | . . . Slashing . | . . . Piercing . | . . . Sneak Attacks . | . . . Combat Hostiles . | . . . Follow-up Attacks . | . . . Damage Inflicted 548 | . 456 92 Guns 226 | . 134 92 Cannons . | . . . Explosions 316 | . 316 . Melee . | . . . Ramming 6 | . 6 . Kinetic 105 | . 74 31 Thermal 121 | . 60 61 Explosive 316 | . 316 . Electromagnetic . | . . . Impact . | . . . Slashing . | . . . Piercing . | . . . Highest Corruption 2 | . 2 2 Average Corruption 1 | . 1 2 Corruption Purged . | . . . Corruption Blocked . | . . . Effects 15 | . 12 3 Message Errors 1 | . 1 . Matter Fused 5 | . 4 1 Heat Flow Errors 1 | . 1 . Parts Fused 1 | . 1 . Data Loss (minor) 5 | . 3 2 Misfires 1 | . 1 . Alerts 1 | . 1 . Overload Shots . | . . . Overflow Damage 8 | . 8 . Projectiles . | . . . Explosions 8 | . 8 . Melee . | . . . Knockbacks 1 | . 1 . Impact 1 | . 1 . Kinetic . | . . . Secondary . | . . . Self-Inflicted Damage . | . . . Shots . | . . . Rammed 1 | . 1 . Targets Rammed 2 | . 2 . Kicked 1 | . 1 . Crushed . | . . . Highest Temperature 127 | . 127 9 Average Temperature 20 | . 24 4 Received Heat Transfer 12 | . 12 . Siege Activations . | . . . Robots Corrupted . | . . . Combat Hostiles . | . . . Parts Fried . | . . . Impact Corruptions . | . . . Robots Melted . | . . . Combat Hostiles . | . . . Parts Melted . | . . . Heat Transferred 370 | . 185 185 Parts Sabotaged . | . . . Parts Stolen . | . . . Parts Stripped . | . . . Power Chain Reactions . | . . . Missiles Intercepted . | . . . Alert | -11 -10 -10 ------- Run | Jun Mat Min Peak Influence 124 | . 124 . Initial . | . . . Average 25 | . 28 . Maximum Alert Level . | . . . Low Security (%) 100 | . 100 100 Level 1 . | . . . Level 2 . | . . . Level 3 . | . . . Level 4 . | . . . Level 5 . | . . . High Security . | . . . Max Security . | . . . Squads Dispatched 1 | . 1 . Investigation . | . . . Extermination . | . . . Reinforcement 1 | . 1 . Assault . | . . . Garrison . | . . . Intercept . | . . . Searches Triggered . | . . . Construction Impeded . | . . . Haulers Reinforced . | . . . Active Scanning Responses . | . . . Cargo Convoy Interrupts . | . . . Stealth | -11 -10 -10 --------- Run | Jun Mat Min Distress Signals 2 | . 2 . Communications Jammed . | . . . Distress Signals . | . . . Times Spotted 19 | . 14 5 Peak Tracking Total 4 | . 4 2 Tactical Retreats . | . . . Traps | -11 -10 -10 ------- Run | Jun Mat Min Traps Triggered 3 | . 3 . Indirectly . | . . . Trap Hack Attempts . | . . . Triggered . | . . . Disarmed . | . . . Reprogrammed . | . . . Reused . | . . . Traps Extracted . | . . . Installed . | . . . Triggered . | . . . Machines | -11 -10 -10 ---------- Run | Jun Mat Min Machines Disabled 2 | . 2 . Max in Single Turn 2 | . 2 . Machines Repaired . | . . . Machines Sabotaged . | . . . Overloaded Fab Kills . | . . . Hacking | -11 -10 -10 --------- Run | Jun Mat Min Machines Accessed 8 | . 8 . Terminals 6 | . 6 . Fabricators . | . . . Repair Stations 1 | . 1 . Recycling Units 1 | . 1 . Scanalyzers . | . . . Garrison Access . | . . . Total Hacks 26 | . 26 . Successful 13 | . 13 . Failed 13 | . 13 . Catastrophic . | . . . Database Lockouts . | . . . Manual 7 | . 7 . Terminals 20 | . 20 . Fabricators . | . . . Repair Stations 3 | . 3 . Recycling Units 3 | . 3 . Scanalyzers . | . . . Garrison Access . | . . . Terminal Hacks 6 | . 6 . Prototype ID Bank 1 | . 1 . Alert Level 1 | . 1 . Locate Traps 2 | . 2 . Hauler Manifests 1 | . 1 . Zone Layout 1 | . 1 . Fabricator Hacks . | . . . Repair Station Hacks 2 | . 2 . Scan Component 1 | . 1 . Repair 1 | . 1 . Recycling Unit Hacks 2 | . 2 . Report Inventory 1 | . 1 . Retrieve Components 1 | . 1 . Scanalyzer . | . . . Garrison Access Hacks . | . . . Unauthorized Hacks 3 | . 3 . Terminals 3 | . 3 . Botnet 3 | . 3 . Fabricators . | . . . Repair Stations . | . . . Recycling Units . | . . . Scanalyzers . | . . . Garrison Access . | . . . Data Cores Recovered . | . . . Used . | . . . Hacking Detections 7 | . 7 . Full Trace Events 1 | . 1 . Feedback Events . | . . . Feedback Blocked . | . . . Robot Schematics Acquired . | . . . Robots Built . | . . . Authchips . | . . . Time . | . . . Total Robot Build Rating . | . . . Part Schematics Acquired . | . . . Parts Built . | . . . Authchips . | . . . Time . | . . . Total Part Build Rating . | . . . Parts Repaired 1 | . 1 . Time 26 | . 26 . Parts Recycled . | . . . Recycled Matter . | . . . Retrieved Matter . | . . . Retrieved Components 3 | . 3 . Parts Scanalyzed . | . . . Part Schematics Acquired . | . . . Parts Damaged . | . . . Bothacking | -11 -10 -10 ------------ Run | Jun Mat Min Used RIF Installer . | . . . Robots Hacked . | . . . Non-combat . | . . . Combat . | . . . Robot Hacks Applied . | . . . Relay Couplers Released . | . . . Fabnet Peak Effective % . | . . . Robots Rewired . | . . . Allies Hacked . | . . . Hacks Repelled . | . . . Allies | -11 -10 -10 -------- Run | Jun Mat Min Total Allies . | . . . Largest Group . | . . . Highest-Rated Group . | . . . Highest-Rated Ally . | . . . Total Orders . | . . . Ally Attacks . | . . . Total Damage . | . . . Kills . | . . . Allies Corrupted . | . . . Allies Melted . | . . . Intel | -11 -10 -10 ------- Run | Jun Mat Min Robot Analysis Total . | . . . Derelict Logs Recovered . | . . . Drone Launches . | . . . Drone Recoveries . | . . . Exploration | -11 -10 -10 ------------- Run | Jun Mat Min Turns Passed 1370 | . 1233 137 Spaces Moved 806 | 1 732 73 Core 1 | . . 1 Treads 700 | . 628 72 Legs 105 | 1 104 . Wheels . | . . . Hover . | . . . Flight . | . . . Fastest Speed 120 | 120 120 160 Average Speed 154 | 120 154 160 Slowest Speed 200 | 120 160 200 Overloaded Moves . | . . . Propulsion Burnouts . | . . . Robots Hopped . | . . . Cave-ins Triggered . | . . . Exploration Rate (%) 39 | 2 89 26 Regions Visited 2 Branch Regions 1 Pre-discovered Areas . | . . . Known Exits Taken . | . . . Unknown Exits Taken 2 | 1 1 . Scrap Searched . | . . . Spaces Dug . | . . . Terrain Destroyed 14 | . 14 . Melee . | . . . Projectile . | . . . AOE 14 | . 14 . Terrain Rammed . | . . . Walls Destroyed . | . . . Machines Disabled . | . . . Actions | -11 -10 -10 --------- Run | Jun Mat Min Total 897 | . 817 80 Wait 48 | . 48 . Move 804 | . 731 73 Hop . | . . . Pick Up 10 | . 10 . Fast Attach 1 | . 1 . Attach 1 | . 1 . Detach . | . . . Swap 7 | . 7 . Drop 7 | . 7 . Fire 17 | . 10 7 Melee . | . . . Ram . | . . . Kick 1 | . 1 . Crush 1 | . 1 . Escape Stasis . | . . . Rewire . | . . . Trap . | . . . Miscellaneous . | . . . Route ------- -11/Junkyard -10/Materials (discovered 4 exits: [*Mat x2] / [*Min x2]) -10/Mines History --------- Turn | Location | Event 1 | -11/Junkyard | Discovered new exit (range 0) 1 | -11/Junkyard | Entered Materials 1 | -10/Materials | Discovered new exit (range 7) 280 | -10/Materials | Discovered new exit (range 14) 319 | -10/Materials | Build established: Mutant 619 | -10/Materials | Discovered new exit (range 10) 671 | -10/Materials | Repaired Terrain Scanner 1092 | -10/Materials | Discovered new exit (range 9) 1234 | -10/Materials | Entered Mines 1341 | -10/Mines | Assembled infested the area 1364 | -10/Mines | Core integrity fell below 50% 1369 | -10/Mines | Core integrity fell below 20% 1371 | -10/Mines | Destroyed by D-53 Grenadier with Mini Grenade Launcher Last Messages --------------- Something is scanning the area. 01255_ System corrupted: Component data lost. 01341_ ALERT: Infestation in the mines, dispatching Demolisher response squad. 01349_ C-30 ARC bursts open, deploying its payload. 01349_ D-53 Grenadier unfolds itself. 01349_ K-01 Serf collects debris. 01353_ Ion Engine destroyed. 01354_ The unstable cave ceiling collapses. 01354_ K-01 Serf collects debris. 01359_ Lgt. Treads destroyed. 01360_ System corrupted: Matter fused (-9). 01360_ K-01 Serf destroyed. 01361_ Lgt. Treads destroyed. 01362_ The unstable cave ceiling collapses. 01366_ Assault Rifle destroyed. 01369_ The unstable cave ceiling collapses. 01369_ Med. Laser destroyed. 01370_ D-53 Grenadier destroyed. 01371_ The unstable cave ceiling collapses. Map ----- +----------------------------------------------------+ | ???????????????????????????????????????? ???????? | | ???????????????????????????? ???????????????????? | | ?????????????????????????### ???????????????????? | | ?????????????????????????? ???????????????????? | | ??????????????????????? ?? ???????????????????# | | ??????????????????????????# ???????? ????????? ? | | ??????????????????????????# ????????????????? ?? | | ?????????????????????????## #???????????#??? ??? | | ???????????????????????### ##????#??###### ? ?? | | ??????????????????????## ##??????# ????? | | ??????????????????????# """ ###????# ? ?? | | ??????????????????????# """ ##???# #?????? | | ???????????????????????# """ ##### #??#???? | | ?????????????????????#??# #????? ? | | ????????????????????????## ## ##?????? | | ????????????????????????## ##### ###???? | | ??????????????????#?????# ##### ##???# | | ???????????????????????## ### ### ###?? | | ???????????????????????## #####?## ##? | | ???????????????????????# ##????# ## | | ???????????????????????# ## ##?????# ## | | ?????????#???????????### ###?###??????# ### | | ???????????????####?## ##???????#???## #?# | | ????????????????aaa # ##?????????## ### | | ???????????????????# # #??##??????# | | ???????????????????# @# #??????????# ## | | ???????????????????# ##??##?????# ##? | | ?????????????#?#???# #??????????# #?? | | ???????????????????# #??????????## ##?? | | ???????????????????### ##?#????????#####??? | | ????????????????#???## ###??#???????????????? | | ?????????????????????## #?????? ?????????????? | | ??????????????????????### #?????? ?????????????? | | ?????????????????????????! ???????????????#????? | | ?????????????????????????%d%????????????????????? | | ?????????????????????????%= ???????????????????? | | ????????????????????????? ???????????????????? | | ????????????????????????? ##????#?????????????? | | ????????????????????????? #???????????????????? | | ????????????????????????? ???????????????????? | | ?????????????????????????? ???????????????????? | | ?????????????????????????? #????????????????????? | | ????????????????????????????????????????????????? | | ????????????????????????????????????????????????? | | ????????????????????????????????????????????????? | | ????????????????????????????????????????????????? | | ????????????????????????????????????????????????? | | ????????????????????????????????????????????????? | | ????????????????????????????????????????????????? | | ????????????????????????????????????????????????? | +----------------------------------------------------+ Best States ------------- Heat Dissipation 25 Energy Generation 10 Energy Capacity 250 Matter Stores 300 Matter Capacity 300 Sight Range 16 Terrain Scan Range 16 Terrain Scan Density 10 Evasion (%) 55 Recoil Reduction 2 Item Schematics ----------------- None Robot Schematics ------------------ None Fabricated ------------ Nothing Alien Tech Used ----------------- None Achievements -------------- None Challenges ------------ None Game ------ Seed OmegaAblativeAirjet Manual? 0 Play Time 00:12:53 Cumulative 107.0 hours Start 2023.03.05 @ 15:09:36 End 2023.03.05 @ 15:21:19 Sessions 1 Manual Loads 0 Difficulty Rogue Special Mode None Game No. 84 Rogue 84 Adventurer 0 Explorer 0 Win Type - Total 0 Types 0/0/0/0/0/0/0/0/0 Lore% 48 Gallery% 61 Achievement% 40 Wizard Run 0 Options --------- ASCII 0 Keyboard 0 Movement Arrows Keybinds 1 Fullscreen 0 Font 16/Terminus Map View 76x50 Tactical HUD 1 Map Filters NONE Filters NONE Steam 1 RUN: aaa68bed-39fa-42ee-8f10-2b7b33ecc7b7